Cogmind - Beta 15 @@@ ROGUE MODE // 2025.09.11 @ 12:59:04 Player: Petvaria Result: Destroyed by K0-IDK(R) with Subdweller Machine Gun Performance ------------- Evolutions (0) 0 Regions Visited (2) 400 Robots Destroyed (29) 145 Value Destroyed (633) 633 Prototype IDs (2) 40 Alien Tech Used (0) 0 Bonus (0) 0 TOTAL SCORE: 1218 Bonus ------- None Cogmind --------- Core Integrity 0/250 Matter 245/300 Energy 180/180 System Corruption 0% Temperature Cool (0) Movement Rolling (120) Ox1 Location -10/Subcaves Parts ------- > --- POWER (1) -------- Meta Core > --- PROPULSION (2+1) - Aluminum Leg (+) Subdweller Monowheel > --- UTILITY (2+1) ---- Large Storage Unit Weapon Shielding > --- WEAPON (2+1) ----- Light Cannon > --- INVENTORY (15) --- Heavy Ion Engine Subdweller Power Source Medium Storage Unit Power Shielding Weapon Shielding Hacking Suite Assault Rifle Assault Rifle Subdweller Machine Gun Light Cannon Light Cannon Mini Grenade Launcher Flail Peak State ------------ > --- POWER ------------ Meta Core > --- PROPULSION ------- Aluminum Leg Subdweller Monowheel > --- UTILITY ---------- Large Storage Unit Weapon Shielding > --- WEAPON ----------- Light Cannon Light Cannon > --- INVENTORY -------- Heavy Ion Engine Subdweller Power Source Medium Storage Unit Power Shielding Weapon Shielding Hacking Suite Assault Rifle Assault Rifle Subdweller Machine Gun Light Cannon Light Cannon Mini Grenade Launcher Flail [Rating: 22] Favorites ----------- Power Heavy Ion Engine Engine Heavy Ion Engine Power Core Meta Core Propulsion Light Treads Treads Light Treads Leg Aluminum Leg Wheel Subdweller Monowheel Utility Weapon Shielding Storage Large Storage Unit Processor Signal Interpreter Protection Weapon Shielding Weapon Assault Rifle Energy Gun Small Laser Ballistic Gun Assault Rifle Ballistic Cannon Light Cannon Impact Weapon Flail Build | -11 -10 -10 ------- Run | Yrd Mat Sub Slots Evolved . | . . . Power . | . . . Propulsion . | . . . Utility . | . . . Weapon . | . . . Parts Attached 23 | 6 9 8 Power 3 | 1 1 1 Engine 2 | 1 1 . Core 1 | . . 1 Reactor . | . . . Propulsion 6 | 2 . 4 Treads 3 | 2 . 1 Leg 2 | . . 2 Wheel 1 | . . 1 Hover . | . . . Flight . | . . . Utility 7 | 1 5 1 Device . | . . . Storage 3 | 1 2 . Processor 1 | . 1 . Hackware . | . . . Protection 3 | . 2 1 Artifact . | . . . Weapon 7 | 2 3 2 Energy Gun 1 | 1 . . Energy Cannon . | . . . Ballistic Gun 2 | 1 1 . Ballistic Cannon 3 | . 1 2 Launcher . | . . . Special Weapon . | . . . Impact Weapon 1 | . 1 . Slashing Weapon . | . . . Piercing Weapon . | . . . Special Melee Weapon . | . . . Unidentified Prototypes 2 | . 1 1 Parts Lost 7 | . 1 6 Power 1 | . 1 . Propulsion 4 | . . 4 Utility 1 | . . 1 Weapon 1 | . . 1 Highest Loss Streak 2 | . 1 2 To Critical Strikes . | . . . Average Backups 10 | 1 9 13 Power 1 | . 1 1 Propulsion . | 1 1 . Utility 3 | . 2 4 Weapon 5 | . 4 6 Tool/Special . | . . . Unused Backups 13 | . 5 8 Power 3 | . 1 2 Propulsion 2 | . 2 . Utility 3 | . . 3 Weapon 4 | . 1 3 Tool/Special 1 | . 1 . Average Slot Usage (%) 92 | . 96 81 Engine 12 | . 14 8 Core 1 | . . 4 Treads 23 | . 28 10 Leg 3 | . . 11 Storage 13 | . 14 12 Protection 9 | . 10 8 Energy Gun 2 | . 3 . Ballistic Gun 19 | . 23 7 Ballistic Cannon 4 | . . 15 Impact Weapon 1 | . 1 2 Peak Build Rating 22 | 6 11 22 Average Rating 10 | 4 8 14 On Entrance 5 | . 6 11 Naked Turns . | . . . Heaviest Build 35 | 13 33 35 Greatest Support 40 | 40 40 40 Greatest Overweight (x) 3 | . . 3 Average Overweight (x) . | . . 2 Largest Inventory Capacity 15 | 8 15 15 Average Capacity 11 | 7 10 15 Most Carried 15 | 3 15 15 Average Carried 10 | 1 9 13 Final Capacity 15 | 8 15 15 Final Carried 15 | 3 15 13 Class Distribution -------------------- 100% | Mutant Dominant Class ---------------- Mutant | -10/Materials Mutant | -10/Subcaves Resources | -11 -10 -10 ----------- Run | Yrd Mat Sub Matter Collected 974 | 218 547 209 Remotely . | . . . Salvage Created 955 | . 749 206 Parts 56 | . 43 13 Haulers Intercepted 2 | . 2 . Recyclers Shooed 4 | . 4 . Parts Field Recycled . | . . . Retrieved Matter . | . . . Parts Self-Destructed 9 | . . 9 Prevented . | . . . Kills | -11 -10 -10 ------- Run | Yrd Mat Sub Combat Hostiles Destroyed 18 | . 12 6 Guns 14 | . 12 2 Cannons 4 | . . 4 Classes Destroyed 8 | . 7 1 Worker 3 | . 3 . Hauler 2 | . 2 . Recycler 2 | . 2 . Operator 2 | . 2 . Watcher 2 | . 2 . Swarmer 6 | . 6 . Grunt 6 | . 6 . Subdweller 6 | . . 6 Best Kill Streak 4 | . 4 2 Combat Bots Only 3 | . 3 2 Max Kills in Single Turn 1 | . 1 1 Gunslinging . | . . . Exploded . | . . . Melee . | . . . Uniques/NPCs Destroyed . | . . . Combat | -11 -10 -10 -------- Run | Yrd Mat Sub Hostile Shots Fired 103 | . 51 52 Missed 26 | . 14 12 Hits 77 | . 37 40 Projectile 77 | . 37 40 Damage Taken 1337 | . 399 938 Core 254 | . 86 168 Absorbed by Shields . | . . . Redirected to Shielding 64 | . 9 55 Core Remaining (%) 100 | 100 . . Volleys Fired 102 | . 72 30 Largest 2 | . 2 2 Hottest 60 | . 60 60 Shots Fired 200 | . 142 58 Gun 168 | . 140 28 Cannon 32 | . 2 30 Launcher . | . . . Special . | . . . Kinetic 179 | . 121 58 Thermal 21 | . 21 . Explosive . | . . . Electromagnetic . | . . . Robot Hit Streak 25 | . 16 25 Robot Miss Streak 4 | . 4 1 Penetration Max . | . . . Secondary Targets 1 | . 1 . Max Gunslinging Chain 1 | . 1 . Shots Hit Robots 143 | . 91 52 Core Hits 53 | . 38 15 Critical Kills . | . . . Critical Parts Destroyed 1 | . 1 . Critical Strikes 3 | . 1 2 Destroy 3 | . 1 2 Melee Attacks 11 | . 2 9 Impact 11 | . 2 9 Slashing . | . . . Piercing . | . . . Sneak Attacks . | . . . Combat Hostiles . | . . . Follow-up Attacks . | . . . Damage Inflicted 1849 | . 1146 703 Guns 1456 | . 1146 310 Cannons 393 | . . 393 Explosions . | . . . Melee . | . . . Ramming . | . . . Kinetic 1691 | . 988 703 Thermal 158 | . 158 . Explosive . | . . . Electromagnetic . | . . . Impact . | . . . Slashing . | . . . Piercing . | . . . Highest Corruption . | . . . Average Corruption . | . . . Corruption Purged . | . . . Corruption Blocked . | . . . Overload Shots . | . . . Overflow Damage . | . . . Projectiles . | . . . Explosions . | . . . Melee . | . . . Knockbacks 9 | . . 9 Impact . | . . . Kinetic 9 | . . 9 Secondary . | . . . Self-Inflicted Damage . | . . . Shots . | . . . Rammed . | . . . Targets Rammed . | . . . Kicked . | . . . Crushed . | . . . Highest Temperature 3 | . 3 . Average Temperature 3 | . 3 . Received Heat Transfer 330 | . 168 162 Siege Activations . | . . . Martial Activations . | . . . Shielding Activations . | . . . Robots Disrupted . | . . . Combat Hostiles . | . . . Robots Corrupted . | . . . Combat Hostiles . | . . . Parts Fried . | . . . Impact Corruptions . | . . . Robots Melted . | . . . Combat Hostiles . | . . . Parts Melted 1 | . 1 . Heat Transferred 375 | . 375 . Parts Sabotaged . | . . . Parts Stolen . | . . . Parts Stripped . | . . . Power Chain Reactions . | . . . Alert | -11 -10 -10 ------- Run | Yrd Mat Sub Maximum Alert Level . | . . . Low Security (%) 100 | 100 100 . Level 1 . | . . . Level 2 . | . . . Level 3 . | . . . Level 4 . | . . . Level 5 . | . . . High Security . | . . . Max Security . | . . . Peak Influence 88 | . 88 . Initial . | . . . Average 19 | . 20 . Influence Increases 422 | . 422 . Destroy 0b10 Robot/C 240 | . 240 . Destroy 0b10 Robot/NC 55 | . 55 . Destroy Leader 68 | . 68 . Successful Hack 14 | . 14 . Disable Machine 30 | . 30 . Lose Combat Pursuer 15 | . 15 . Influence Decreases 422 | . 386 36 Entered New Map 18 | . . 18 Time Decay 404 | . 386 18 Squads Dispatched 2 | . 2 . Investigation 1 | . 1 . Extermination . | . . . Reinforcement 1 | . 1 . Assault . | . . . Garrison . | . . . Intercept . | . . . Searches Triggered . | . . . Construction Impeded . | . . . Haulers Reinforced . | . . . Active Scanning Responses . | . . . Cargo Convoy Interrupts . | . . . Stealth | -11 -10 -10 --------- Run | Yrd Mat Sub Distress Signals 1 | . 1 . Communications Jammed . | . . . Distress Signals . | . . . Times Spotted 33 | . 25 8 Peak Tracking Total 4 | . 4 3 Tactical Retreats 1 | . 1 . Traps | -11 -10 -10 ------- Run | Yrd Mat Sub Traps Triggered 2 | . 1 1 Indirectly . | . . . Trap Hack Attempts . | . . . Triggered . | . . . Disarmed . | . . . Reprogrammed . | . . . Reused . | . . . Traps Extracted . | . . . Installed . | . . . Triggered . | . . . Machines | -11 -10 -10 ---------- Run | Yrd Mat Sub Machines Disabled 2 | . 2 . Max in Single Turn 1 | . 1 . Machines Repaired . | . . . Machines Dismantled . | . . . Machines Sabotaged . | . . . Overloaded Fab Kills . | . . . Hacking | -11 -10 -10 --------- Run | Yrd Mat Sub Machines Accessed 1 | . 1 . Terminals 1 | . 1 . Fabricators . | . . . Repair Stations . | . . . Recycling Units . | . . . Scanalyzers . | . . . Garrison Access . | . . . Total Hacks 2 | . 2 . Successful 2 | . 2 . Failed . | . . . Catastrophic . | . . . Database Lockouts . | . . . Manual 2 | . 2 . Terminals 2 | . 2 . Fabricators . | . . . Repair Stations . | . . . Recycling Units . | . . . Scanalyzers . | . . . Garrison Access . | . . . Terminal Hacks 1 | . 1 . Branch Access Points 1 | . 1 . Fabricator Hacks . | . . . Repair Station Hacks . | . . . Recycling Unit Hacks . | . . . Scanalyzer . | . . . Garrison Access Hacks . | . . . Unauthorized Hacks 1 | . 1 . Terminals 1 | . 1 . Operators 1 | . 1 . Fabricators . | . . . Repair Stations . | . . . Recycling Units . | . . . Scanalyzers . | . . . Garrison Access . | . . . Data Cores Recovered 1 | . 1 . Used . | . . . Hacking Detections . | . . . Full Trace Events . | . . . Feedback Events . | . . . Feedback Blocked . | . . . Robot Schematics Acquired . | . . . Robots Built . | . . . Authchips . | . . . Time . | . . . Total Robot Build Rating . | . . . Part Schematics Acquired . | . . . Parts Built . | . . . Authchips . | . . . Time . | . . . Total Part Build Rating . | . . . Parts Repaired . | . . . Time . | . . . Parts Recycled . | . . . Recycled Matter . | . . . Retrieved Matter . | . . . Retrieved Components . | . . . Parts Scanalyzed . | . . . Part Schematics Acquired . | . . . Parts Damaged . | . . . Bothacking | -11 -10 -10 ------------ Run | Yrd Mat Sub Used RIF Installer . | . . . Robots Hacked . | . . . Non-combat . | . . . Combat . | . . . Robot Hacks Applied . | . . . Relay Couplers Released . | . . . Fabnet Peak Effective % . | . . . Robots Rewired . | . . . Allies Hacked . | . . . Hacks Repelled . | . . . Allies | -11 -10 -10 -------- Run | Yrd Mat Sub Total Allies . | . . . Largest Group . | . . . Highest-Rated Group . | . . . Highest-Rated Ally . | . . . Total Orders . | . . . Ally Attacks . | . . . Total Damage . | . . . Kills . | . . . Allies Corrupted . | . . . Allies Melted . | . . . Intel | -11 -10 -10 ------- Run | Yrd Mat Sub Active Infowar (turns) . | . . . Robot Analysis Total . | . . . Derelict Logs Recovered . | . . . Drone Launches . | . . . Drone Recoveries . | . . . Exploration | -11 -10 -10 ------------- Run | Yrd Mat Sub Turns Passed 2724 | 95 1946 683 Spaces Moved 1272 | 61 1027 184 Core 15 | 15 . . Treads 1094 | 46 1027 21 Legs 127 | . . 127 Wheels 36 | . . 36 Hover . | . . . Flight . | . . . Fastest Speed 50 | 50 160 120 Average Speed 172 | 132 160 252 Slowest Speed 330 | 160 160 330 Overloaded Moves . | . . . Propulsion Burnouts . | . . . Robots Hopped . | . . . Potential Cave-ins . | . . . Cave-ins Triggered . | . . . Exploration Rate (%) 34 | 4 88 11 Regions Visited 2 Branch Regions 1 Pre-discovered Areas . | . . . Known Exits Taken 1 | . 1 . Unknown Exits Taken 1 | 1 . . Scrap Searched . | . . . Spaces Dug 5 | . . 5 Terrain Destroyed 5 | . . 5 Melee 5 | . . 5 Projectile . | . . . AOE . | . . . Terrain Rammed . | . . . Walls Destroyed . | . . . Machines Disabled . | . . . Actions | -11 -10 -10 --------- Run | Yrd Mat Sub Total 1591 | 75 1186 330 Wait 132 | . 39 93 Move 1270 | 60 1026 184 Hop . | . . . Pick Up 34 | 9 21 4 Fast Attach 3 | . 3 . Attach 14 | 6 2 6 Detach . | . . . Swap 12 | . 9 3 Drop 13 | . 12 1 Fire 102 | . 72 30 Melee 11 | . 2 9 Ram . | . . . Kick . | . . . Crush . | . . . Escape Stasis . | . . . Rewire . | . . . Trap . | . . . Miscellaneous . | . . . Route ------- -11/Scrapyard -10/Materials (discovered 5 exits: [*Mat x3] / *Min / *Sub) -10/Subcaves (discovered 1 exit: [*Mat]) History --------- Turn | Location | Event 3 | -11/Scrapyard | Discovered new exit (range 15) 96 | -11/Scrapyard | Entered Materials 247 | -10/Materials | Identified exit to Mines 311 | -10/Materials | Build established: Mutant 357 | -10/Materials | Discovered new exit (range 7) 562 | -10/Materials | Discovered new exit (range 16) 747 | -10/Materials | Discovered new exit (range 7) 1150 | -10/Materials | Identified exit to Subcaves 1467 | -10/Materials | Discovered new exit (range 5) 2042 | -10/Materials | Entered Subcaves 2043 | -10/Subcaves | Approached by a straggling Scientist 2045 | -10/Subcaves | A swath of the cavern ceiling suddenly collapsed 2075 | -10/Subcaves | Discovered new exit (range 5) 2125 | -10/Subcaves | Core integrity fell below 50% 2382 | -10/Subcaves | A Subdweller sparked back to life 2382 | -10/Subcaves | A Subdweller sparked back to life 2382 | -10/Subcaves | A Subdweller sparked back to life 2431 | -10/Subcaves | Found Prototype Power Core 2432 | -10/Subcaves | Identified Meta Core 2433 | -10/Subcaves | Attached Meta Core, gained temporary slots: Propulsion, Utility, Weapon 2471 | -10/Subcaves | Core integrity fell below 20% 2725 | -10/Subcaves | Destroyed by K0-IDK(R) with Subdweller Machine Gun Last Messages --------------- WT-81B(R) knocked back. WT-81B(R) destroyed. Acquired 6 matter. Acquired 39 matter. Acquired 4 matter. Subatomizers dissect the Disposable Heat Sink. IC-3Q5(R) destroyed. Acquired 28 matter. Subatomizers dissect the Disposable Heat Sink. Acquired 3 matter. Acquired Sub. Machine Gun. Acquired 1 matter. Subatomizers dissect the Disposable Heat Sink. Acquired Sub. Monowheel. Subatomizers dissect the Disposable Heat Sink. Acquired 4 matter. K0-IDK(R) knocked back. Lgt. Cannon destroyed. K0-IDK(R) knocked back. Map ----- +----------------------------------------------------+ | ?????????????????????????????????????????????????? | | ?????????????????????????????????????????????????? | | ?????????????????????????????????????????????????? | | ?????????????????????????????????????????????????? | | ?????????????????????????????????????????????????? | | ?????????????????????????????????????????????????? | | ?????????????????????????????????????????????????? | | ?????????????????????????????????????????????????? | | ?????????????????????????????????????????????????? | | ?????????????????????????????????????????????????? | | ?????????????????????????????????????????????????? | | ?????????????????????????????????????????????????? | | ?????????????????????????????????????????????????? | | ?????????????????????????????????????????????????? | | ?????????????????????????????????????????????????? | | ?????????????????????????????????????????????????? | | ???????????????????###??????###??????????????????? | | ???????????????????# ????# ####???????????????? | | ???????????????????# ???# #???????????????? | | ????????????????#### ### #???????????????? | | ????????????????# #"#"" #???????????????? | | ?????????????????? " " #???????????????? | | ?????????????????????# %R #???????????????# | | ????????????????????????#" # #???????????????# | | ????????????????????????## #????????????????? | | ???????????????????????##@ % % #????????????????? | | ??????????????????????## ##????????????????? | | ?????????????????????## ###?????????????????? | | ?????????????????????#" #???????????????????? | | ?????????????????????## ##???????????????????? | | ??????????????????????# ##????????????????????? | | ?????????????????????## ###?????????????????????? | | ?????????????????????#& #??####?????????????????? | | ?????????????????????# & ##?# ##????????????????? | | ?????????????????????## &!### ##???????????????? | | ??????????????????????# !"""# ##??????????????? | | ??????????????????????# ^ "" ^ #?????#########? | | ??????????????????????# ####### ## #? | | ??????????????????????## %# # ## | | ???????????????????????# " # | | ???????????????????????# & ## | | ???????????????????###?# ^ ###" " ## | | ??????????????????## ## ### ## # %% ## | | ?????????????????## #?# # #& | | ?????????????????# ^ #?# ### %%%% | | ????????????????# ## ##?## & ##### | | ???????????????# ###^ #???##* ##???## | | ???????????????# ###?# #????####?????# | | ???????????????## #???? ^ #?????????????# | | ????????????????## #????? #?????????????# | +----------------------------------------------------+ Best States ------------- Heat Dissipation 25 Energy Generation 17 Energy Capacity 280 Matter Stores 300 Matter Capacity 300 Sight Range 16 Terrain Scan Density 10 Power Shielding 33 Weapon Shielding 33 Evasion (%) 50 Recoil Reduction 2 Item Schematics ----------------- None Robot Schematics ------------------ None Fabricated ------------ Nothing Repaired ---------- Nothing Alien Tech Used ----------------- None Achievements -------------- None Challenges ------------ None Game ------ Seed NovaCoolingSlayer Manual? 0 Play Time 00:15:32 Cumulative 190.8 hours Start 2025.09.11 @ 12:42:01 End 2025.09.11 @ 12:59:04 Sessions 1 Manual Loads 0 Difficulty Rogue Special Mode None Game No. 158 Rogue 158 Adventurer 0 Explorer 0 Win Type - Total 10 Types 4/0/2/2/1/0/0/0/0/1 Lore% 86 Gallery% 83 Achievement% 64 Wizard Run 0 Options --------- Layout 1 ASCII 0 Keyboard 0 Movement Numpad Keybinds 0 Fullscreen 1 Font 24/Proggy Map View 50x35 Zoom Use 0% Tactical HUD 0 Map Filters NONE Filters NONE Steam 1 RUN: babf4220-12f2-4681-8aa9-7dccb7eed28b